Cogmind - Beta 10.2 @@@ ROGUE MODE // 2020.12.31 @ 01:15:58 Player: Wyvric Result: Destroyed by G-67 Veteran with Plasma Rifle Performance ------------- Evolutions (6) 3000 Regions Visited (18) 3600 Robots Destroyed (100) 500 Value Destroyed (4827) 4827 Prototype IDs (46) 920 Alien Tech Used (0) 0 Bonus (2341) 2341 TOTAL SCORE: 15188 Bonus ------- High Alert Combat Kills 210 Follower Combat Kills 531 Aligned with FarCom 300 Met Imprinter 300 Destroyed Z-Imprinter 1000 Cogmind --------- Core Integrity 0/1150 Matter 32/300 Energy 73/100 System Corruption 13% Temperature Cool (12) Movement Core (50) Location -4/Factory Parts ------- > --- POWER (2) -------- (None) > --- PROPULSION (4) --- (None) > --- UTILITY (11) ----- (None) > --- WEAPON (2) ------- (None) > --- INVENTORY (4) ---- Antimatter Reactor Advanced Targeting Computer Mobile Refinery Mk. CCLXVII Peak State ------------ > --- POWER ------------ Fission Core Fission Core > --- PROPULSION ------- Zionite Glidesys I Antigrav System Gyrokinetic Inverter Linear Gravjet > --- UTILITY ---------- High-capacity Storage Unit Experimental Sensor Array Experimental Signal Interpreter Advanced Force Booster Advanced Hacking Suite Advanced Hacking Suite Advanced Hacking Suite Improved System Shield Improved System Shield Improved System Shield Improved System Shield > --- WEAPON ----------- Greatsword > --- INVENTORY -------- Large Storage Unit Large Storage Unit Zionite Biocell Advanced Weight Redist. System Surveybot 24 Scanner Damper Plating Damper Plating Mobile Refinery Mk. CCLXVII [Rating: 107] Favorites ----------- Power Reinforced Deuterium Engine Engine Reinforced Deuterium Engine Power Core Fission Core Reactor Light Antimatter Reactor Propulsion Zionite Composite Leg I Treads Light Treads Leg Zionite Composite Leg I Wheel Centrium Wheel Hover Unit Zionite Glidesys I Flight Unit Field Propulsion Drive Utility High-capacity Storage Unit Device Experimental Sensor Array Storage High-capacity Storage Unit Processor Advanced Signal Interpreter Hackware Improved System Shield Protection Powered Armor Weapon Great Axe Energy Gun Improved EM Shotgun Energy Cannon Particle Cannon Ballistic Gun Gauss Rifle Ballistic Cannon Light Cannon Launcher Heavy Missile Launcher Impact Weapon Flail Slashing Weapon Great Axe Build | -11 -10 -10 -10 -9 -8 -7 -7 -7 -7 -7 -6 -6 -6 -6 -5 -4 -4 -4 ------- Run | Scr Mat Min Exi Min Mat Fac Low Low Zio Dee Pro Fac Low Low Fac Fac Was Fac Slots Evolved 12 | . . . . . 4 2 . . . . . 2 . . 2 2 . . Power 1 | . . . . . . . . . . . . . . . . 1 . . Propulsion 2 | . . . . . . . . . . . . 1 . . 1 . . . Utility 9 | . . . . . 4 2 . . . . . 1 . . 1 1 . . Weapon . | . . . . . . . . . . . . . . . . . . . Parts Attached 365 | 6 7 . 4 . 33 61 4 5 17 52 6 69 20 12 37 2 6 24 Power 23 | 1 . . 1 . 2 4 . 1 . . . 7 . 1 1 1 1 3 Engine 11 | 1 . . 1 . 1 4 . 1 . . . 3 . . . . . . Core 6 | . . . . . 1 . . . . . . 2 . 1 1 1 . . Reactor 6 | . . . . . . . . . . . . 2 . . . . 1 3 Propulsion 47 | 2 2 . . . 2 5 . . 1 8 1 1 4 3 10 . 1 7 Treads 11 | . 2 . . . 2 3 . . . 1 . . 2 . . . . 1 Leg 19 | 2 . . . . . 2 . . 1 6 1 1 2 3 . . . 1 Wheel 2 | . . . . . . . . . . . . . . . . . . 2 Hover 12 | . . . . . . . . . . 1 . . . . 10 . 1 . Flight 3 | . . . . . . . . . . . . . . . . . . 3 Utility 175 | 1 3 . 1 . 6 26 4 3 8 31 3 37 11 3 23 1 4 10 Device 110 | . . . . . 2 18 4 1 6 26 3 27 8 1 3 1 4 6 Storage 20 | 1 2 . 1 . 1 4 . . 2 1 . 1 1 1 3 . . 2 Processor 10 | . 1 . . . 2 1 . 1 . 1 . 3 . . 1 . . . Hackware 13 | . . . . . . . . . . . . 2 1 . 10 . . . Protection 22 | . . . . . 1 3 . 1 . 3 . 4 1 1 6 . . 2 Artifact . | . . . . . . . . . . . . . . . . . . . Weapon 120 | 2 2 . 2 . 23 26 . 1 8 13 2 24 5 5 3 . . 4 Energy Gun 26 | . . . . . 8 7 . . 3 2 . 3 1 . . . . 2 Energy Cannon 12 | . . . 2 . 9 . . . . . . . . . . . . 1 Ballistic Gun 25 | 2 . . . . . 5 . . 2 2 2 12 . . . . . . Ballistic Cannon 9 | . 2 . . . . 4 . . . 1 . 1 . . . . . 1 Launcher 17 | . . . . . . 2 . 1 . 7 . 1 1 3 2 . . . Special Weapon . | . . . . . . . . . . . . . . . . . . . Impact Weapon 2 | . . . . . 2 . . . . . . . . . . . . . Slashing Weapon 29 | . . . . . 4 8 . . 3 1 . 7 3 2 1 . . . Piercing Weapon . | . . . . . . . . . . . . . . . . . . . Special Melee Weapon . | . . . . . . . . . . . . . . . . . . . Unidentified Prototypes 15 | . . . . . 2 2 . . 1 5 . 5 . . . . . . Parts Lost 63 | . . . . . 3 2 . . . 11 . 4 2 9 3 . . 29 Power 6 | . . . . . 2 . . . . . . 1 . 1 . . . 2 Propulsion 21 | . . . . . 1 1 . . . 3 . . . 3 2 . . 11 Utility 24 | . . . . . . . . . . 2 . 2 1 3 1 . . 15 Weapon 12 | . . . . . . 1 . . . 6 . 1 1 2 . . . 1 Highest Loss Streak 17 | . . . . . 1 2 . . . 6 . 2 2 9 2 . . 17 Average Slot Usage (%) 91 | . 93 100 87 85 75 83 92 92 89 98 99 98 98 83 95 94 94 70 Engine 6 | . 14 14 14 14 4 7 7 7 7 7 7 2 . . . . . . Core 1 | . . . . . 4 . . . . . . . 6 3 5 10 8 . Treads 7 | . 14 28 28 28 18 11 . . . . . . 9 . . . . 2 Leg 9 | . 14 . . . . 3 15 15 15 14 15 20 9 18 . . . . Hover 1 | . . . . . . . . . . . . . . . 22 21 21 8 Device 8 | . . . . . 5 11 14 14 9 8 14 7 18 3 1 10 10 12 Storage 23 | . 18 28 16 14 18 17 23 23 27 30 30 30 35 34 11 5 5 2 Processor 10 | . 3 . . . 6 15 15 15 15 20 15 10 2 . . 5 5 4 Hackware 3 | . . . . . . . . . . . . 7 1 6 33 36 36 24 Energy Gun 1 | . . . . . 5 5 . . . . . 1 . . . . . . Energy Cannon 3 | . . . 25 28 10 . . . . . . . . . . . . . Ballistic Gun 3 | . 2 . . . . 1 . . 10 2 6 6 . . . . . . Ballistic Cannon 2 | . 25 28 2 . . 2 . . . . . . . . . . . 2 Launcher 2 | . . . . . . 1 . 1 2 7 4 . 2 1 4 . . . Slashing Weapon 3 | . . . . . 1 2 15 12 1 1 4 3 9 8 5 5 5 1 Naked Turns 11 | . . . . . . . . . . . . . . . . . . 11 Heaviest Build 241 | 12 43 43 93 93 180 241 170 180 231 163 157 186 182 181 95 60 66 79 Greatest Support 88 | 20 40 40 40 40 40 48 30 30 30 48 48 72 72 72 88 72 72 84 Greatest Overweight (x) 7 | 3 1 1 2 2 4 6 5 5 7 5 3 2 3 3 1 . . 4 Average Overweight (x) 2 | . . 1 1 2 3 3 5 5 5 3 3 1 2 2 . . . . Largest Inventory Capacity 64 | 6 16 16 24 24 44 64 40 40 56 36 36 44 44 44 44 12 12 12 Average Capacity 35 | 5 8 16 22 24 43 43 40 40 42 36 36 41 44 44 18 12 12 6 Most Carried 44 | 6 15 16 24 24 44 44 40 40 40 36 36 44 44 40 32 10 12 12 Average Carried 33 | 4 6 15 21 23 40 42 40 38 38 33 36 39 39 34 17 9 11 6 Final Capacity 44 | 6 16 16 24 24 44 40 40 40 36 36 36 44 44 44 12 12 12 4 Final Carried 44 | 6 15 16 24 24 43 40 40 33 36 36 36 44 40 32 10 10 12 3 Class Distribution -------------------- 51% | Hauler-Mutant 23% | Hauler-Assassin 11% | Hauler-Skirmisher 6% | Mutant 4% | Wizard-Mutant Dominant Class ---------------- Mutant | -10/Materials Mutant | -10/Mines Hauler-Mutant | -10/Exiles Hauler-Mutant | -9/Mines Hauler-Mutant | -8/Materials Hauler-Mutant | -7/Factory Hauler-Assassin | -7/Lower Caves Hauler-Assassin | -7/Lower Caves Hauler-Mutant | -7/Zion Hauler-Mutant | -7/Deep Caves Hauler-Assassin | -6/Proximity Caves Hauler-Mutant | -6/Factory Hauler-Mutant | -6/Lower Caves Hauler-Mutant | -6/Lower Caves Wizard-Mutant | -5/Factory Wizard-Mutant | -4/Factory Wizard-Mutant | -4/Waste Hacker-Mutant | -4/Factory Resources | -11 -10 -10 -10 -9 -8 -7 -7 -7 -7 -7 -6 -6 -6 -6 -5 -4 -4 -4 ----------- Run | Scr Mat Min Exi Min Mat Fac Low Low Zio Dee Pro Fac Low Low Fac Fac Was Fac Matter Collected 6088 | 260 138 84 160 . 295 1066 235 59 252 894 62 1061 553 43 392 . 259 275 Remotely 91 | . . . . . . . 91 . . . . . . . . . . . Salvage Created 3848 | . 64 29 . . 388 989 48 . . 280 41 658 297 453 108 . . 493 Parts 199 | . 4 1 . . 22 57 5 . . 11 5 41 9 17 8 . . 19 Haulers Intercepted 1 | . . . . . . 1 . . . . . . . . . . . . Recyclers Shooed . | . . . . . . . . . . . . . . . . . . . Parts Field Recycled . | . . . . . . . . . . . . . . . . . . . Retrieved Matter . | . . . . . . . . . . . . . . . . . . . Parts Self-Destructed 25 | . . . . . . . 5 . . . 5 . 8 7 . . . . Prevented . | . . . . . . . . . . . . . . . . . . . Kills | -11 -10 -10 -10 -9 -8 -7 -7 -7 -7 -7 -6 -6 -6 -6 -5 -4 -4 -4 ------- Run | Scr Mat Min Exi Min Mat Fac Low Low Zio Dee Pro Fac Low Low Fac Fac Was Fac Combat Hostiles Destroyed 94 | . 2 1 . . 6 19 1 . . 12 1 12 6 14 8 . . 12 Melee 10 | . . . . . 1 2 1 . . . . 1 2 . 3 . . . Guns 27 | . . . . . 1 7 . . . 3 1 11 2 . . . . 2 Cannons 15 | . 2 1 . . 3 2 . . . . . . . . . . . 7 AOE 40 | . . . . . . 7 . . . 9 . . 2 14 5 . . 3 Classes Destroyed 15 | . 2 . . . 3 4 . . . 3 . . 3 . . . . . Worker 2 | . . . . . 1 . . . . . . . . . . . . 1 Tunneler 1 | . . . . . . 1 . . . . . . . . . . . . Hauler 1 | . . . . . . 1 . . . . . . . . . . . . Recycler 1 | . . . . . . 1 . . . . . . . . . . . . Watcher 4 | . 1 . . . 1 . . . . . . 2 . . . . . . Swarmer 12 | . . . . . . . . . . . . . 1 1 8 . . 2 Grunt 33 | . 2 1 . . 4 9 . . . . . 4 . 9 . . . 4 Brawler 2 | . . . . . . . . . . . . . 2 . . . . . Duelist 4 | . . . . . . . . . . . . . 1 3 . . . . Sentry 11 | . . . . . 1 4 . . . . . 2 2 1 . . . 1 Hunter 3 | . . . . . 1 . . . . . . . . . . . . 2 Programmer 17 | . . . . . . 6 1 . . . 1 6 . . . . . 3 Z-Technician 5 | . . . . . . . . . . 5 . . . . . . . . Z-Light 8 | . . . . . . . . . . 8 . . . . . . . . Assembled 3 | . . . . . . . . . . 3 . . . . . . . . Best Kill Streak 14 | . 1 1 . . 2 6 1 . . 6 1 4 4 14 4 . . 3 Combat Bots Only 14 | . 1 1 . . 2 6 1 . . 6 1 4 4 14 4 . . 3 Max Kills in Single Turn 4 | . 1 1 . . 2 3 1 . . 4 1 1 2 3 3 . . 3 Gunslinging . | . . . . . . . . . . . . . . . . . . . Exploded 3 | . . . . . . 3 . . . 3 . . 2 3 3 . . 3 Melee 1 | . . . . . 1 1 1 . . . . 1 1 . 1 . . . Uniques/NPCs Destroyed 1 | . . . . . . . . . . 1 . . . . . . . . Z-Imprinter (-7/Deep Caves) Combat | -11 -10 -10 -10 -9 -8 -7 -7 -7 -7 -7 -6 -6 -6 -6 -5 -4 -4 -4 -------- Run | Scr Mat Min Exi Min Mat Fac Low Low Zio Dee Pro Fac Low Low Fac Fac Was Fac Damage Taken 15594 | . 236 122 100 . 1294 1960 40 105 . 2557 14 1695 984 1362 432 . . 4693 Core 2646 | . 24 11 6 . 244 86 . . . 523 . 207 143 133 112 . . 1157 Absorbed by Shields . | . . . . . . . . . . . . . . . . . . . Reduced by Siege Mode 98 | . . . . . . . . . . . . . . . . . . 98 Core Remaining (%) 63 | 100 . . . 83 55 . . . . . 13 . . 43 88 . . . Volleys Fired 296 | . 12 7 . . 24 50 . 4 . 42 2 53 16 14 3 . . 69 Largest 2 | . 2 2 . . 2 2 . 1 . 2 2 2 2 1 1 . . 2 Hottest 160 | . 70 70 . . 160 96 . 39 . 100 56 120 60 39 39 . . 153 Shots Fired 485 | . 24 14 . . 47 92 . 5 . 71 4 99 20 12 3 . . 94 Gun 283 | . . . . . 10 75 . . . 45 4 99 17 . . . . 33 Cannon 147 | . 24 14 . . 37 8 . . . 3 . . . . . . . 61 Launcher 55 | . . . . . . 9 . 5 . 23 . . 3 12 3 . . . Special . | . . . . . . . . . . . . . . . . . . . Kinetic 276 | . 24 14 . . . 56 . . . 32 4 79 8 . . . . 59 Thermal 72 | . . . . . 37 . . . . . . . . . . . . 35 Explosive 47 | . . . . . . 9 . . . 20 . . 3 12 3 . . . Electromagnetic 61 | . . . . . 10 27 . 5 . 19 . . . . . . . . Phasic 29 | . . . . . . . . . . . . 20 9 . . . . . Robot Hit Streak 22 | . 4 14 . . 17 17 . . . 6 10 13 4 12 . . . 22 Robot Miss Streak 6 | . 1 1 . . 3 3 . . . 3 5 5 6 1 . . . 3 Penetration Max . | . . . . . . . . . . . . . . . . . . . Secondary Targets 3 | . . . . . . . . . . 1 . 2 . . . . . . Max Gunslinging Chain 1 | . . . . . . . . . . 1 . 1 . . . . . . Shots Hit Robots 379 | . 16 12 . . 36 76 2 2 . 38 3 83 25 11 5 . . 70 Core Hits 273 | . 4 2 . . 15 44 1 2 . 46 5 54 10 41 14 . . 35 Critical Hits 5 | . . . . . 1 2 . . . 1 . . . . . . . 1 Critical Kills 2 | . . . . . . 2 . . . . . . . . . . . . Critical Parts Destroyed 2 | . . . . . 1 . . . . . . . . . . . . 1 Melee Attacks 220 | . . . . . 21 31 2 9 30 4 7 38 21 2 39 . 1 15 Impact 8 | . . . . . 8 . . . . . . . . . . . . . Slashing 212 | . . . . . 13 31 2 9 30 4 7 38 21 2 39 . 1 15 Piercing . | . . . . . . . . . . . . . . . . . . . Sneak Attacks 3 | . . . . . . 1 2 . . . . . . . . . . . Combat Hostiles 2 | . . . . . . . 2 . . . . . . . . . . . Follow-up Attacks 4 | . . . . . . 2 1 . . . . . . 1 . . . . Damage Inflicted 16868 | . 244 211 . . 900 2628 202 349 . 4181 91 1985 894 1799 605 . . 2779 Guns 4840 | . . . . . 172 1189 . . . 493 91 1892 348 . . . . 655 Cannons 3068 | . 244 211 . . 652 156 . . . 15 . . . . . . . 1790 Explosions 7307 | . . . . . . 899 . 285 . 3544 . . 219 1707 406 . . 247 Melee 1604 | . . . . . 62 384 202 64 . 129 . 93 327 92 199 . . 52 Ramming 49 | . . . . . 14 . . . . . . . . . . . . 35 Kinetic 5266 | . 244 211 . . . 944 . . . 406 91 1463 117 . . . . 1790 Thermal 3244 | . . . . . 652 160 . . . 1760 . . . . . . . 672 Explosive 4697 | . . . . . . 739 . . . 1626 . . 219 1707 406 . . . Electromagnetic 1348 | . . . . . 172 401 . 285 . 260 . . . . . . . 230 Impact 62 | . . . . . 62 . . . . . . . . . . . . . Slashing 1542 | . . . . . . 384 202 64 . 129 . 93 327 92 199 . . 52 Piercing . | . . . . . . . . . . . . . . . . . . . Phasic 660 | . . . . . . . . . . . . 429 231 . . . . . Highest Corruption 13 | . . . . . . 7 7 8 8 2 2 8 13 13 . . 9 13 Average Corruption 4 | . . . . . . 2 7 7 8 2 2 3 10 13 . . 9 10 Corruption Purged 5 | . . . . . . . . . . . . . . . . . . 5 Effects 298 | . . . . . . 27 29 43 5 21 12 43 63 8 . . 2 45 Message Errors 68 | . . . . . . 7 7 12 1 7 6 12 12 . . . . 4 Matter Fused 58 | . . . . . . 5 6 13 . . . 12 11 2 . . 1 8 Heat Flow Errors 35 | . . . . . . 5 4 4 2 4 2 4 6 . . . . 4 Energy Discharges 40 | . . . . . . 3 5 5 2 2 1 7 11 . . . . 4 Parts Rejected 2 | . . . . . . . . . . . . . . 1 . . . 1 Data Loss (minor) 32 | . . . . . . 3 3 4 . 3 3 5 7 1 . . . 3 Data Loss (major) 15 | . . . . . . . 3 4 . . . . 6 . . . 1 1 Misfires 5 | . . . . . . 1 . 1 . . . . 1 . . . . 2 Misdirections 5 | . . . . . . . . . . . . . 4 . . . . 1 Targeting Errors 34 | . . . . . . 3 1 . . 4 . 3 5 2 . . . 16 Weapon Failures 4 | . . . . . . . . . . 1 . . . 2 . . . 1 Overload Shots . | . . . . . . . . . . . . . . . . . . . Overflow Damage 930 | . . 9 . . 18 75 57 43 . 468 . . . 73 27 . . 160 Projectiles 157 | . . 9 . . 18 . . . . . . . . . . . . 130 Explosions 510 | . . . . . . 75 . 23 . 344 . . . 41 27 . . . Melee 263 | . . . . . . . 57 20 . 124 . . . 32 . . . 30 Knockbacks 27 | . . 7 . . . 1 . . . . . . . . . . . 19 Impact . | . . . . . . . . . . . . . . . . . . . Kinetic 27 | . . 7 . . . 1 . . . . . . . . . . . 19 Secondary . | . . . . . . . . . . . . . . . . . . . Self-Inflicted Damage 1174 | . . . . . . 360 . 62 . 400 . . 70 154 81 . . 47 Shots 22 | . . . . . . 5 . 4 . 1 . . 2 5 3 . . 2 Rammed 8 | . . . . . 1 . . . . . . . . . . . . 7 Targets Rammed 8 | . . . . . 1 . . . . . . . . . . . . 7 Kicked . | . . . . . . . . . . . . . . . . . . . Crushed . | . . . . . . . . . . . . . . . . . . . Highest Temperature 388 | . 186 75 . . 261 187 311 251 244 255 231 388 270 39 . . 40 279 Average Temperature 95 | . 79 33 . . 74 61 117 114 109 105 103 93 82 16 . . 16 125 Received Heat Transfer 3198 | . 135 66 . . 648 405 . . . 495 . 420 153 339 27 . . 510 Effects 5 | . . . . . . . . . . 3 2 . . . . . . . Interference 5 | . . . . . . . . . . 3 2 . . . . . . . Siege Activations 6 | . . . . . . . . . . . . . . . . . . 6 Total Turns 120 | . . . . . . . . . . . . . . . . . . 120 Longest Duration 43 | . . . . . . . . . . . . . . . . . . 43 Robots Corrupted 2 | . . . . . 1 1 . . . . . . . . . . . . Combat Hostiles 2 | . . . . . 1 1 . . . . . . . . . . . . Parts Fried 3 | . . . . . 2 1 . . . . . . . . . . . . Impact Corruptions . | . . . . . . . . . . . . . . . . . . . Robots Melted . | . . . . . . . . . . . . . . . . . . . Combat Hostiles . | . . . . . . . . . . . . . . . . . . . Parts Melted . | . . . . . . . . . . . . . . . . . . . Heat Transferred 2302 | . . . . . 1066 150 . . . . . . . . . . . 1086 Parts Sabotaged . | . . . . . . . . . . . . . . . . . . . Parts Stolen 8 | . . . . . . . . 5 . . . . 3 . . . . . Parts Stripped . | . . . . . . . . . . . . . . . . . . . Power Chain Reactions 3 | . . . . . . 2 . . . . . . . . . . . 1 Missiles Intercepted . | . . . . . . . . . . . . . . . . . . . Alert | -11 -10 -10 -10 -9 -8 -7 -7 -7 -7 -7 -6 -6 -6 -6 -5 -4 -4 -4 ------- Run | Scr Mat Min Exi Min Mat Fac Low Low Zio Dee Pro Fac Low Low Fac Fac Was Fac Peak Influence 639 | . 128 30 . . 111 639 . . . . . 114 . . 418 . 92 506 Initial 154 | . . . . . . 21 . . . . . . . . 154 . . 64 Average 91 | . 47 9 . . 30 183 . . . . . 39 . . 110 . 61 276 Maximum Alert Level 2 | . . . . . . 2 . . . . . . . . 2 . . 2 Low Security (%) 87 | 100 100 100 . 100 100 75 . . . . . 100 . . 93 100 100 22 Level 1 4 | . . . . . . . . . . . . . . . 5 . . 60 Level 2 7 | . . . . . . 23 . . . . . . . . 1 . . 16 Level 3 . | . . . . . . . . . . . . . . . . . . . Level 4 . | . . . . . . . . . . . . . . . . . . . Level 5 . | . . . . . . . . . . . . . . . . . . . High Security . | . . . . . . . . . . . . . . . . . . . Max Security . | . . . . . . . . . . . . . . . . . . . Squads Dispatched 29 | . . . . . 4 10 . . . . . 5 . 1 2 . . 7 Investigation 2 | . . . . . 1 1 . . . . . . . . . . . . Extermination 13 | . . . . . . 5 . . . . . 4 . . 1 . . 3 Reinforcement 12 | . . . . . 3 3 . . . . . 1 . . 1 . . 4 Assault 1 | . . . . . . . . . . . . . . 1 . . . . Garrison 1 | . . . . . . 1 . . . . . . . . . . . . Intercept . | . . . . . . . . . . . . . . . . . . . Construction Impeded 2 | . . . . . . . . . . . . . . . 1 . . 1 Haulers Reinforced 1 | . . . . . . 1 . . . . . . . . . . . . Stealth | -11 -10 -10 -10 -9 -8 -7 -7 -7 -7 -7 -6 -6 -6 -6 -5 -4 -4 -4 --------- Run | Scr Mat Min Exi Min Mat Fac Low Low Zio Dee Pro Fac Low Low Fac Fac Was Fac Distress Signals 5 | . . . . . . . . . . . . 1 . . . . . 4 Communications Jammed . | . . . . . . . . . . . . . . . . . . . Distress Signals . | . . . . . . . . . . . . . . . . . . . Times Spotted 194 | . 6 4 3 . 16 25 . 5 . 9 1 18 9 15 14 . 3 66 Peak Tracking Total 21 | . 2 2 2 . 5 6 . 5 . 6 1 4 5 10 4 . 1 21 Tactical Retreats 17 | . . . 1 . 2 3 . . . . . . . 1 2 . . 8 Traps | -11 -10 -10 -10 -9 -8 -7 -7 -7 -7 -7 -6 -6 -6 -6 -5 -4 -4 -4 ------- Run | Scr Mat Min Exi Min Mat Fac Low Low Zio Dee Pro Fac Low Low Fac Fac Was Fac Traps Triggered 5 | . . . . . 1 . 1 . . . . . . . 1 1 . 1 Indirectly . | . . . . . . . . . . . . . . . . . . . Trap Hack Attempts . | . . . . . . . . . . . . . . . . . . . Triggered . | . . . . . . . . . . . . . . . . . . . Disarmed . | . . . . . . . . . . . . . . . . . . . Reprogrammed . | . . . . . . . . . . . . . . . . . . . Reused . | . . . . . . . . . . . . . . . . . . . Traps Extracted . | . . . . . . . . . . . . . . . . . . . Installed . | . . . . . . . . . . . . . . . . . . . Triggered . | . . . . . . . . . . . . . . . . . . . Machines | -11 -10 -10 -10 -9 -8 -7 -7 -7 -7 -7 -6 -6 -6 -6 -5 -4 -4 -4 ---------- Run | Scr Mat Min Exi Min Mat Fac Low Low Zio Dee Pro Fac Low Low Fac Fac Was Fac Machines Disabled 16 | . . . . . . 6 . . . 2 . . . 2 . . . 6 Max in Single Turn 3 | . . . . . . 3 . . . 1 . . . 1 . . . 2 Garrison Access 2 | . . . . . . 1 . . . . . 1 . . . . . . Machines Sabotaged . | . . . . . . . . . . . . . . . . . . . Garrisons Compromised . | . . . . . . . . . . . . . . . . . . . Overloaded Fab Kills . | . . . . . . . . . . . . . . . . . . . Fab Network Shutdowns . | . . . . . . . . . . . . . . . . . . . Hacking | -11 -10 -10 -10 -9 -8 -7 -7 -7 -7 -7 -6 -6 -6 -6 -5 -4 -4 -4 --------- Run | Scr Mat Min Exi Min Mat Fac Low Low Zio Dee Pro Fac Low Low Fac Fac Was Fac Machines Accessed 39 | . 5 1 1 . 3 4 . 1 . . . 12 . . 9 . . 3 Terminals 29 | . 5 1 . . 3 3 . . . . . 7 . . 7 . . 3 Fabricators 3 | . . . . . . . . . . . . 2 . . 1 . . . Repair Stations . | . . . . . . . . . . . . . . . . . . . Recycling Units 1 | . . . . . . . . . . . . 1 . . . . . . Scanalyzers 1 | . . . . . . . . . . . . 1 . . . . . . Garrison Access 3 | . . . . . . 1 . . . . . 1 . . 1 . . . Total Hacks 189 | . 21 2 1 . 5 7 . 1 . . . 38 . . 100 . . 14 Successful 94 | . 9 1 1 . 1 3 . 1 . . . 17 . . 56 . . 5 Failed 94 | . 12 1 . . 4 4 . . . . . 21 . . 43 . . 9 Catastrophic 12 | . 3 . . . 1 . . . . . . 4 . . 3 . . 1 Database Lockouts 1 | . . . . . . . . . . . . . . . 1 . . . Manual 140 | . 19 2 1 . 5 7 . . 1 . . 19 . . 77 . . 9 Terminals 156 | . 21 2 . . 5 6 . . . . . 23 . . 85 . . 14 Fabricators 18 | . . . . . . . . . . . . 8 . . 10 . . . Repair Stations . | . . . . . . . . . . . . . . . . . . . Recycling Units 2 | . . . . . . . . . . . . 2 . . . . . . Scanalyzers 3 | . . . . . . . . . . . . 3 . . . . . . Garrison Access 8 | . . . . . . 1 . . . . . 2 . . 5 . . . Terminal Hacks 46 | . 4 . 1 . . . . 1 . . . 7 . . 29 . . 4 Record 2 | . . . . . . . . . . . . . . . 2 . . . Part Schematic 16 | . 2 . . . . . . . . . . 2 . . 12 . . . Prototype ID Bank 1 | . 1 . . . . . . . . . . . . . . . . . Open Door 1 | . . . . . . . . 1 . . . . . . . . . . Branch Access Points 3 | . . . . . . . . . . . . 1 . . 1 . . 1 Terminal Index 2 | . . . . . . . . . . . . 1 . . 1 . . . Fabricator Index 2 | . . . . . . . . . . . . . . . 1 . . 1 Alert Level 5 | . . . . . . . . . . . . 1 . . 4 . . . Unreport Threat 7 | . 1 . . . . . . . . . . 2 . . 3 . . 1 Locate Traps 2 | . . . . . . . . . . . . . . . 2 . . . Hauler Manifests 1 | . . . . . . . . . . . . . . . 1 . . . Registered Components 1 | . . . . . . . . . . . . . . . 1 . . . Zone Layout 2 | . . . . . . . . . . . . . . . 1 . . 1 EX-Prototype ID Bank 1 | . . . 1 . . . . . . . . . . . . . . . Fabricator Hacks 10 | . . . . . . . . . . . . 3 . . 7 . . . Load Schematic 4 | . . . . . . . . . . . . 1 . . 3 . . . Build 6 | . . . . . . . . . . . . 2 . . 4 . . . Repair Station Hacks . | . . . . . . . . . . . . . . . . . . . Recycling Unit Hacks 2 | . . . . . . . . . . . . 2 . . . . . . Process 1 | . . . . . . . . . . . . 1 . . . . . . Retrieve Matter 1 | . . . . . . . . . . . . 1 . . . . . . Scanalyzer 1 | . . . . . . . . . . . . 1 . . . . . . Insert Component 1 | . . . . . . . . . . . . 1 . . . . . . Garrison Access Hacks 1 | . . . . . . . . . . . . 1 . . . . . . Seal Access 1 | . . . . . . . . . . . . 1 . . . . . . Unauthorized Hacks 33 | . 5 1 . . 1 3 . . . . . 3 . . 19 . . 1 Terminals 27 | . 5 1 . . 1 2 . . . . . 3 . . 14 . . 1 Track 7 | . 1 1 . . . . . . . . . . . . 5 . . . Assimilate 3 | . . . . . . 1 . . . . . . . . 2 . . . Botnet 15 | . 4 . . . 1 1 . . . . . 3 . . 6 . . . Disrupt 2 | . . . . . . . . . . . . . . . 1 . . 1 Fabricators 2 | . . . . . . . . . . . . . . . 2 . . . Prioritize 1 | . . . . . . . . . . . . . . . 1 . . . Siphon 1 | . . . . . . . . . . . . . . . 1 . . . Repair Stations . | . . . . . . . . . . . . . . . . . . . Recycling Units . | . . . . . . . . . . . . . . . . . . . Scanalyzers . | . . . . . . . . . . . . . . . . . . . Garrison Access 4 | . . . . . . 1 . . . . . . . . 3 . . . Redirect 1 | . . . . . . . . . . . . . . . 1 . . . Reprogram 1 | . . . . . . . . . . . . . . . 1 . . . Watchers 1 | . . . . . . . . . . . . . . . 1 . . . Jam 1 | . . . . . . 1 . . . . . . . . . . . . Data Cores Recovered . | . . . . . . . . . . . . . . . . . . . Used . | . . . . . . . . . . . . . . . . . . . Hacking Detections 34 | . 5 1 . . 3 3 . . . . . 11 . . 8 . . 3 Full Trace Events . | . . . . . . . . . . . . . . . . . . . Feedback Events . | . . . . . . . . . . . . . . . . . . . Feedback Blocked . | . . . . . . . . . . . . . . . . . . . Robot Schematics Acquired . | . . . . . . . . . . . . . . . . . . . Robots Built . | . . . . . . . . . . . . . . . . . . . Matter . | . . . . . . . . . . . . . . . . . . . Time . | . . . . . . . . . . . . . . . . . . . Total Robot Build Rating . | . . . . . . . . . . . . . . . . . . . Part Schematics Acquired 16 | . 2 . . . . . . . . . . 2 . . 12 . . . Parts Built 6 | . . . . . . . . . . . . 2 . . 4 . . . Matter 894 | . . . . . . . . . . . . 204 . . 690 . . . Time 166 | . . . . . . . . . . . . 50 . . 116 . . . Total Part Build Rating 25 | . . . . . . . . . . . . 2 . . 23 . . . Parts Repaired . | . . . . . . . . . . . . . . . . . . . Time . | . . . . . . . . . . . . . . . . . . . Parts Recycled . | . . . . . . . . . . . . . . . . . . . Recycled Matter 183 | . . . . . . . . . . . . 183 . . . . . . Retrieved Matter . | . . . . . . . . . . . . . . . . . . . Retrieved Components . | . . . . . . . . . . . . . . . . . . . Parts Scanalyzed . | . . . . . . . . . . . . . . . . . . . Part Schematics Acquired . | . . . . . . . . . . . . . . . . . . . Parts Damaged . | . . . . . . . . . . . . . . . . . . . Bothacking | -11 -10 -10 -10 -9 -8 -7 -7 -7 -7 -7 -6 -6 -6 -6 -5 -4 -4 -4 ------------ Run | Scr Mat Min Exi Min Mat Fac Low Low Zio Dee Pro Fac Low Low Fac Fac Was Fac Used RIF Installer . | . . . . . . . . . . . . . . . . . . . Robots Hacked . | . . . . . . . . . . . . . . . . . . . Non-combat . | . . . . . . . . . . . . . . . . . . . Combat . | . . . . . . . . . . . . . . . . . . . Robot Hacks Applied . | . . . . . . . . . . . . . . . . . . . Relay Couplers Released 3 | . . . . . . 3 . . . . . . . . . . . . Programmers 3 | . . . . . . 3 . . . . . . . . . . . . Robots Rewired . | . . . . . . . . . . . . . . . . . . . Allies Hacked 1 | . . . . . . 1 . . . . . . . . . . . . Hacks Repelled . | . . . . . . . . . . . . . . . . . . . Allies | -11 -10 -10 -10 -9 -8 -7 -7 -7 -7 -7 -6 -6 -6 -6 -5 -4 -4 -4 -------- Run | Scr Mat Min Exi Min Mat Fac Low Low Zio Dee Pro Fac Low Low Fac Fac Was Fac Total Allies 27 | . . . . 5 . 1 . . . . . . . . 2 . 19 . Largest Group 19 | . . . . 5 5 1 . . . . . . . . 2 . 19 11 Highest-Rated Group 714 | . . . . 79 79 26 . . . . . . . . 36 . 714 460 Highest-Rated Ally 50 | . . . . 31 31 26 . . . . . . . . 26 . 50 50 Total Orders 6 | . . . . . . . . . . . . . . . . 1 2 3 EXPLORE 3 | . . . . . . . . . . . . . . . . 1 . 2 RETURN 3 | . . . . . . . . . . . . . . . . . 2 1 Ally Attacks 152 | . . . . . 28 . . . . . . . . . . . 94 30 Total Damage 5696 | . . . . . 359 . . . . . . . . . . . 4261 1076 Kills 26 | . . . . . 7 . . . . . . . . . . . 13 6 Allies Corrupted 1 | . . . . . . . . . . . . . . . . . . 1 Allies Melted . | . . . . . . . . . . . . . . . . . . . Intel | -11 -10 -10 -10 -9 -8 -7 -7 -7 -7 -7 -6 -6 -6 -6 -5 -4 -4 -4 ------- Run | Scr Mat Min Exi Min Mat Fac Low Low Zio Dee Pro Fac Low Low Fac Fac Was Fac Robot Analysis Total . | . . . . . . . . . . . . . . . . . . . Derelict Logs Recovered 8 | . . 1 . 2 . . 1 3 . . 1 . . . . . . . Drone Launches 10 | . . . . . . . . . . . . . . . . 1 2 7 Drone Recoveries 9 | . . . . . . . . . . . . . . . . . 2 7 Exploration | -11 -10 -10 -10 -9 -8 -7 -7 -7 -7 -7 -6 -6 -6 -6 -5 -4 -4 -4 ------------- Run | Scr Mat Min Exi Min Mat Fac Low Low Zio Dee Pro Fac Low Low Fac Fac Was Fac Turns Passed 25396 | 65 534 928 1361 751 1923 2956 1062 1346 3777 3125 1218 2829 1548 143 853 29 105 843 Spaces Moved 10468 | 42 304 502 673 370 605 1019 357 483 1247 975 369 988 570 42 1059 59 160 644 Core 73 | 18 . . . . . . . . . . . . . . . . . 55 Treads 3522 | . 147 502 673 370 605 800 . . . . . . 413 . . . . 12 Legs 5018 | 24 157 . . . . 219 357 483 1247 975 369 988 157 42 . . . . Wheels 143 | . . . . . . . . . . . . . . . . . . 143 Hover 1703 | . . . . . . . . . . . . . . . 1059 59 160 425 Flight 9 | . . . . . . . . . . . . . . . . . . 9 Fastest Speed 37 | 50 120 180 160 200 200 220 270 270 270 230 290 170 220 196 43 43 43 37 Average Speed 206 | 112 144 180 196 200 239 238 270 270 282 278 290 229 222 233 47 43 43 78 Slowest Speed 330 | 200 180 180 200 200 240 300 270 270 330 290 290 230 230 290 118 43 45 160 Overloaded Moves . | . . . . . . . . . . . . . . . . . . . Propulsion Burnouts . | . . . . . . . . . . . . . . . . . . . Robots Hopped . | . . . . . . . . . . . . . . . . . . . Cave-ins Triggered . | . . . . . . . . . . . . . . . . . . . Exploration Rate (%) 53 | 4 54 99 91 90 57 26 60 68 86 81 55 29 57 11 29 5 89 20 Regions Visited 18 Branch Regions 10 Pre-discovered Areas 6 | . . 1 . 3 . . . . 2 . . . . . . . . . Known Exits Taken 9 | . . . . . . 1 1 1 1 1 1 1 . 1 1 . . . Unknown Exits Taken 7 | 1 1 1 1 1 1 . . . . . . . 1 . . . . . Scrap Searched 11 | . . 2 . 2 . . 1 2 3 . 1 . . . . . . . Spaces Dug 169 | . . . . . 15 20 . 3 3 3 7 34 10 . 57 . 1 16 Terrain Destroyed 443 | . . . . . 24 136 . 3 3 29 7 40 41 55 78 . 1 26 Melee 139 | . . . . . 13 20 . 3 3 3 7 34 10 . 33 . 1 12 Projectile 33 | . . . . . 11 3 . . . . . 6 2 . . . . 11 AOE 271 | . . . . . . 113 . . . 26 . . 29 55 45 . . 3 Terrain Rammed . | . . . . . . . . . . . . . . . . . . . Walls Destroyed . | . . . . . . . . . . . . . . . . . . . Machines Disabled . | . . . . . . . . . . . . . . . . . . . Actions | -11 -10 -10 -10 -9 -8 -7 -7 -7 -7 -7 -6 -6 -6 -6 -5 -4 -4 -4 --------- Run | Scr Mat Min Exi Min Mat Fac Low Low Zio Dee Pro Fac Low Low Fac Fac Was Fac Total 13382 | 56 377 513 718 383 995 1426 453 507 1455 1298 500 1383 787 68 1348 63 193 859 Wait 1532 | 3 32 2 . 8 247 169 92 2 120 187 116 159 157 . 145 . 18 75 Move 10451 | 41 303 501 672 369 604 1018 356 482 1246 974 368 987 569 41 1058 59 159 644 Hop . | . . . . . . . . . . . . . . . . . . . Pick Up 250 | 6 14 2 28 3 43 44 . 2 21 22 . 34 2 . 16 2 2 9 Fast Attach 73 | 6 5 . 1 . 4 8 . 1 2 3 1 17 . 1 8 . 3 13 Attach 125 | . 2 . 3 . 11 18 . 1 12 18 . 16 7 8 17 2 . 10 Detach 23 | . . . . . 1 3 . . 2 3 . 5 3 . 5 . . 1 Swap 167 | . . . . . 18 35 4 3 3 31 5 36 13 3 12 . 3 1 Drop 238 | . 9 1 14 3 21 52 . 3 19 14 1 38 . . 41 . 7 15 Fire 296 | . 12 7 . . 24 50 . 4 . 42 2 53 16 14 3 . . 69 Melee 215 | . . . . . 21 29 1 9 30 4 7 38 20 1 39 . 1 15 Ram 4 | . . . . . . . . . . . . . . . . . . 4 Kick . | . . . . . . . . . . . . . . . . . . . Crush 4 | . . . . . 1 . . . . . . . . . . . . 3 Escape Stasis 4 | . . . . . . . . . . . . . . . 4 . . . Rewire . | . . . . . . . . . . . . . . . . . . . Trap . | . . . . . . . . . . . . . . . . . . . Miscellaneous . | . . . . . . . . . . . . . . . . . . . Route ------- -11/Scrapyard -10/Materials (discovered 2 exits: [*Mat] / *Min) -10/Mines (discovered 3 exits: [*Mat x2] / *Exi) -10/Exiles (discovered 2 exits: [*Min x2]) -9/Mines (discovered 2 exits: *Mat x2) -8/Materials (discovered 2 exits: *Fac / [*Sto]) -7/Factory (discovered 2 exits: *Fac / *Low) -7/Lower Caves -7/Lower Caves (discovered 2 exits: *Fac / *Zio) -7/Zion (discovered 2 exits: *Dee / *Pro) -7/Deep Caves -6/Proximity Caves -6/Factory (discovered 4 exits: *Fac x2 / *Low x2) -6/Lower Caves -6/Lower Caves -5/Factory (discovered 4 exits: *Fac x2 / *Upp x2) -4/Factory -4/Waste -4/Factory (discovered 5 exits: Upp x2 / Ext x2 / *Arm) History --------- Turn | Location | Event 34 | -11/Scrapyard | Discovered new exit (range 14) 66 | -11/Scrapyard | Entered Materials 319 | -10/Materials | Build established: Mutant 353 | -10/Materials | Discovered new exit (range 8) 419 | -10/Materials | Discovered new exit (range 18) 600 | -10/Materials | Entered Mines 606 | -10/Mines | Joined a pair of Derelicts in attacking an 0b10 outpost 907 | -10/Mines | Discovered new exit (range 6) 1216 | -10/Mines | Found a hidden stash of uninstalled traps 1353 | -10/Mines | Discovered new exit (range 11) 1402 | -10/Mines | Deemed a non-threat by the Exiles lab entrance 1404 | -10/Mines | Discovered new exit (range 5) 1528 | -10/Mines | Entered Exiles 1552 | -10/Exiles | Discovered new exit (range 15) 1644 | -10/Exiles | Met 8R-AWN 1673 | -10/Exiles | Met EX-HEX 1851 | -10/Exiles | Met EX-DEC 1882 | -10/Exiles | Visited The Gauntlet 2045 | -10/Exiles | Build established: Hauler-Mutant 2220 | -10/Exiles | Discovered new exit (range 14) 2444 | -10/Exiles | Met EX-BIN 2568 | -10/Exiles | Aligned with FarCom system 2570 | -10/Exiles | Given EX-Vault access code 2616 | -10/Exiles | Opened EX-Vault 2632 | -10/Exiles | Found Chronowheel 2635 | -10/Exiles | Found AWS/Autocannon 2644 | -10/Exiles | Found Skeleton Box 2685 | -10/Exiles | Warned to stay clear of 0b10 Research branches 2702 | -10/Exiles | Exiles lab attacked by MAIN.C 2889 | -10/Exiles | Stole three prototypes: Chronowheel, AWS/Autocannon, Skeleton Box 2889 | -10/Exiles | Entered Mines 2963 | -9/Mines | Learned location of Storage (-8) 3365 | -9/Mines | A weapon hastily lodged in a ceiling crevice suddenly fell to the ground 3469 | -9/Mines | Discovered new exit (range 7) 3479 | -9/Mines | Found a damaged Exp. Sensor Array with a note attached 3484 | -9/Mines | Found Prototype Device 3551 | -9/Mines | Assisted by bots powering up and referring to "LRC-V3" 3591 | -9/Mines | Discovered new exit (range 5) 3640 | -9/Mines | Entered Materials 3640 | -8/Materials | Accompanied by 5 allies 3640 | -8/Materials | Evolved 4 slots: Utility x4 3645 | -8/Materials | Led the pair of lost Derelicts to an unsafe place 3649 | -8/Materials | Identified Exp. Sensor Array 4106 | -8/Materials | Discovered new exit (range 8) 5405 | -8/Materials | Discovered new exit (range 5) 5563 | -8/Materials | Entered Factory 5563 | -7/Factory | Evolved 2 slots: Utility x2 5565 | -7/Factory | FarCom data flow suspended 5896 | -7/Factory | Build established: Hauler-Assassin 6265 | -7/Factory | Build established: Hauler-Skirmisher 6783 | -7/Factory | Build established: Hauler-Mutant 7666 | -7/Factory | Build established: Hauler-Skirmisher 7715 | -7/Factory | Garrison activated, responded to threat 7892 | -7/Factory | Found Powered Armor 7895 | -7/Factory | Discovered new exit (range 4) 7903 | -7/Factory | Identified exit to Factory 7985 | -7/Factory | Build established: Hauler-Mutant 8391 | -7/Factory | Discovered new exit (range 14) 8485 | -7/Factory | Identified exit to Lower Caves 8519 | -7/Factory | Entered Lower Caves 8819 | -7/Lower Caves | Learned 8 Factory zone layouts 8835 | -7/Lower Caves | Build established: Hauler-Assassin 9053 | -7/Lower Caves | Encountered a Warlord checkpoint 9559 | -7/Lower Caves | Discovered new exit (range 3) 9578 | -7/Lower Caves | Identified exit to Lower Caves 9581 | -7/Lower Caves | Entered another Lower Caves area 9603 | -7/Lower Caves | Discovered exit to Factory (range 8) 9929 | -7/Lower Caves | Learned location of 1 exit from Factory 10559 | -7/Lower Caves | Spotted 9G-X7C(f) 10560 | -7/Lower Caves | Encountered a Master Thief 10561 | -7/Lower Caves | AWS/Autocannon stolen by Master Thief 10562 | -7/Lower Caves | Spotted RK-6ZY(f) 10563 | -7/Lower Caves | Encountered a Master Thief 10566 | -7/Lower Caves | Spotted 2O-EW7(f) 10566 | -7/Lower Caves | Spotted Z3-AKD(f) 10567 | -7/Lower Caves | Encountered a Master Thief 10567 | -7/Lower Caves | Encountered a Master Thief 10567 | -7/Lower Caves | Spotted 8T-79W(f) 10568 | -7/Lower Caves | Encountered a Master Thief 10572 | -7/Lower Caves | Chronowheel stolen by Master Thief 10574 | -7/Lower Caves | Discovered new exit (range 15) 10575 | -7/Lower Caves | Skeleton Box stolen by Master Thief 10576 | -7/Lower Caves | Lgt. Angular Momentum Engine stolen by Master Thief 10585 | -7/Lower Caves | Rigged Fission Core stolen by Master Thief 10813 | -7/Lower Caves | Learned Factory interactive machine intel 10924 | -7/Lower Caves | Identified exit to Zion 10927 | -7/Lower Caves | Entered Zion 10984 | -7/Zion | Found Prototype Energy Gun 11047 | -7/Zion | System corruption cleaned by Quarantine Array 11086 | -7/Zion | Discovered new exit (range 24) 11115 | -7/Zion | Received a visual enhancement algorithm 11376 | -7/Zion | Identified exit to Proximity Caves 11836 | -7/Zion | Found Prototype Device 11837 | -7/Zion | Identified Mobile Refinery Mk. CCLXVII 11941 | -7/Zion | Build established: Hauler-Mutant 12001 | -7/Zion | Learned location of Armory (-4) 12960 | -7/Zion | Learned Factory terminal intel 14316 | -7/Zion | Build established: Hauler-Skirmisher 14682 | -7/Zion | Discovered new exit (range 4) 14692 | -7/Zion | Saw the warning signs outside the Deep Caves entrance 14695 | -7/Zion | Identified exit to Deep Caves 14704 | -7/Zion | Entered Deep Caves 15338 | -7/Deep Caves | Attacked by Z-Imprinter 15372 | -7/Deep Caves | Core integrity fell below 50% 15383 | -7/Deep Caves | Destroyed Z-Imprinter 15408 | -7/Deep Caves | Lost 6 parts (2n2u2w) 15580 | -7/Deep Caves | Z-Facility disabled 15587 | -7/Deep Caves | Core integrity fell below 20% 15646 | -7/Deep Caves | Build established: Hauler-Mutant 16016 | -7/Deep Caves | Found Prototype Protection 16036 | -7/Deep Caves | Identified Zio. Weapon Casing 16151 | -7/Deep Caves | Found Zio. Weapon Casing 17418 | -7/Deep Caves | Discovered new exit (range 6) 17429 | -7/Deep Caves | Identified exit to Proximity Caves 17607 | -7/Deep Caves | Found Unknown Device 17607 | -7/Deep Caves | Identified Surveybot 24 Scanner 17614 | -7/Deep Caves | Found Surveybot 24 Chip 17829 | -7/Deep Caves | Entered Proximity Caves 17902 | -6/Proximity Caves | Build established: Hauler-Assassin 18808 | -6/Proximity Caves | Learned Factory machine intel 18841 | -6/Proximity Caves | Build established: Hauler-Skirmisher 18884 | -6/Proximity Caves | Discovered exit to Factory (range 17) 19047 | -6/Proximity Caves | Entered Factory 19047 | -6/Factory | Evolved 2 slots: Propulsion x1, Utility x1 19048 | -6/Factory | Identified exit to Factory 19050 | -6/Factory | Loaded intel: 321 machine locations 19051 | -6/Factory | Loaded intel: 44 interactive machine locations 19052 | -6/Factory | Loaded intel: 20 terminal locations 19511 | -6/Factory | Build established: Hauler-Assassin 20091 | -6/Factory | Fabricated Hcp. Storage Unit (x1) 20129 | -6/Factory | Fabricated Hcp. Storage Unit (x1) 20255 | -6/Factory | Discovered exit to Factory (range 5) 20423 | -6/Factory | Build established: Hauler-Mutant 20939 | -6/Factory | Identified exit to Lower Caves 21537 | -6/Factory | Found Prototype Launcher 21537 | -6/Factory | Identified Scatter Rocket Array 21876 | -6/Factory | Entered Lower Caves 21876 | -6/Lower Caves | Spotted 6H-OD3(f) 21876 | -6/Lower Caves | Spotted 21-MSL(f) 21877 | -6/Lower Caves | Encountered a Master Thief 21877 | -6/Lower Caves | Encountered a Master Thief 21877 | -6/Lower Caves | Surveybot 24 Chip stolen by Master Thief 21878 | -6/Lower Caves | Spotted FX-7J6(f) 21879 | -6/Lower Caves | Encountered a Master Thief 21879 | -6/Lower Caves | Zio. Phaser-S stolen by Master Thief 21887 | -6/Lower Caves | Flak Gun stolen by Master Thief 22249 | -6/Lower Caves | Build established: Hauler-Assassin 22591 | -6/Lower Caves | Attracted the attention of an 0b10 outpost 22625 | -6/Lower Caves | System corruption reached 10% 22837 | -6/Lower Caves | Build established: Hauler-Mutant 23283 | -6/Lower Caves | Attracted the attention of an 0b10 checkpoint 23403 | -6/Lower Caves | Discovered new exit (range 6) 23424 | -6/Lower Caves | Entered another Lower Caves area 23426 | -6/Lower Caves | Attracted the attention of an 0b10 outpost 23449 | -6/Lower Caves | Core integrity fell below 50% 23486 | -6/Lower Caves | Destroyed 14 combat bots 23488 | -6/Lower Caves | Lost 9 parts (1p3n3u2w) 23537 | -6/Lower Caves | Discovered exit to Factory (range 12) 23567 | -6/Lower Caves | Entered Factory 23567 | -5/Factory | Evolved 2 slots: Propulsion x1, Utility x1 23568 | -5/Factory | Identified exit to Upper Caves 23869 | -5/Factory | Discovered new exit (range 4) 23967 | -5/Factory | Discovered new exit (range 4) 24024 | -5/Factory | Build established: Wizard-Mutant 24034 | -5/Factory | Central database locked down 24210 | -5/Factory | Fabricated Adv. Hacking Suite (x1) 24239 | -5/Factory | Fabricated Adv. Hacking Suite (x1) 24272 | -5/Factory | Fabricated Adv. Hacking Suite? 24332 | -5/Factory | Fabricated Exp. Signal Interpreter? 24419 | -5/Factory | Identified exit to Factory 24420 | -5/Factory | Entered another Factory area 24420 | -4/Factory | Evolved 2 slots: Power x1, Utility x1 24449 | -4/Factory | Sucked down chute 24449 | -4/Factory | Entered Waste 24452 | -4/Waste | Spotted C-40 Crusher 24460 | -4/Waste | Met Warlord forces unprepared to attack 24464 | -4/Waste | EMP discharged 24465 | -4/Waste | Spotted C-40 Crusher 24468 | -4/Waste | Spotted C-40 Crusher 24469 | -4/Waste | Allies destroyed C-40 Crusher 24472 | -4/Waste | Found Damper Plating 24480 | -4/Waste | Spotted C-40 Crusher 24482 | -4/Waste | Allies destroyed C-40 Crusher 24496 | -4/Waste | Allies destroyed C-40 Crusher 24497 | -4/Waste | Spotted C-40 Crusher 24502 | -4/Waste | Allies destroyed C-40 Crusher 24507 | -4/Waste | Found Damper Plating 24512 | -4/Waste | Found Unknown Device 24512 | -4/Waste | Identified Adv. Force Booster 24525 | -4/Waste | Discovered new exit (range 12) 24534 | -4/Waste | Identified exit to Factory 24554 | -4/Waste | Entered Factory 24554 | -4/Factory | Accompanied by 11 allies 24575 | -4/Factory | Found Quantum Capacitor 24613 | -4/Factory | Identified exit to Upper Caves 24613 | -4/Factory | Identified exit to Extension 24613 | -4/Factory | Identified exit to Armory 24773 | -4/Factory | Lost 4 parts (3n1u) 24822 | -4/Factory | System corruption reached 10% 24859 | -4/Factory | Lost 4 parts (1p2u1w) 25232 | -4/Factory | Build established: Hacker-Mutant 25365 | -4/Factory | Core integrity fell below 50% 25375 | -4/Factory | Assembled infested ambush trap array 25394 | -4/Factory | Core integrity fell below 20% 25397 | -4/Factory | Destroyed by G-67 Veteran with Plasma Rifle Last Messages --------------- 25378_ as-91944 sneak attacks. 25378_ U-05 Engineer destroyed. 25380_ Penetrated by Slug. 25380_ P-70 Sage resets G-73 Enforcer, system corruption cleaned. 25385_ as-52296 emerges from a hatch in the floor. 25385_ as-34473 emerges from a hatch in the floor. 25385_ as-45126 emerges from a hatch in the floor. 25385_ C-30 ARC bursts open, deploying its payload. 25385_ D-63 Destroyer unfolds itself. 25386_ O-24 Administrator: "IFF HANDSHAKE FAILED. SECURING TERMINAL." 25387_ U-05 Engineer lays Concrete. 25389_ K-01 Serf destroyed. 25389_ U-05 Engineer destroyed. 25391_ Myomer Leg destroyed. 25392_ O-24 Administrator uses terminal to summon reinforcements. 25392_ ALERT: Hostiles spotted, dispatching reinforcements to Terminal F014. 25392_ O-24 Administrator locks terminal. 25393_ Penetrated by Slug. 25396_ S-27 Virus destroyed. Map ----- +----------------------------------------------------+ | ?????????????????????????????????????????????????? | | ?????????????????????????????????????????????????? | | ?????????????????????????????????????????????????? | | ?????????????????????????????????????????????????? | | ?????????????????????????????????????????????????? | | ?????????????????????????????????????????????????? | | ?????????????????????????????????????????????????? | | ?????????????????????????????????????????????????? | | ?????????????????????????????????????????????????? | | ?????????????????????????????????????????????????? | | ???????????????????????????????#?#?####???##?????? | | ??????????????????????????????? ?? #?????? | | ??????????????????????????????# " " " """ #?????? | | ??????????????????????????????# " " " G" #?"???? | | ??????????????????????????????# " " " """ #?""" " | | ??????????????????????????????# " " " # """ " | | ?????????????????????########?# " " " | = # | | ????????????????????#"""" #?# " " " # | | ????????????????????# " #?# " " " # | | ????????????????????? #?# " " " | | ?????????????????????? ### " " " ""T"" | | ?????????????????#???? """ ## * """"" | | ?????????????????# ????#" # % | | ?????????????????# ??#" ## | | ?????????????????# Y #" | | ?????????????????# ss @ | | ????????????#" g >s Y % | | ????????????#"" g# = | | ?????????????????# Y #" ! | | ?????????????????# #" | | ?????????????????# ?#" ## # #### | | ?????????????????#### """ ##### #??# | | ????????????????????# ? #???# #??# | | ????????????????????# ? #???# #?? | | ????????????????????#?" #???# #??# | | ??????????????????????""" #???# #??# | | ???????????????????????######???# #??# | | ????????????????????????????????# #??## | | ????????????????????????????????? ! #????### | | ?????????????????????????????????#######+???????# | | ????????????????????????????????????????????????# | | ????????????????????????????????????????????????# | | ????????????????????????????????????????????????# | | ????????????????????????????????????????????????# | | ????????????????????????????????????????????????# | | ????????????????????????????????????????????????#? | | ?????????????????????????????????????????????????? | | ?????????????????????????????????????????????????? | | ?????????????????????????????????????????????????? | | ?????????????????????????????????????????????????? | +----------------------------------------------------+ Best States ------------- Heat Dissipation 71 Energy Generation 37 Energy Capacity 1310 Matter Stores 300 Matter Capacity 300 Sight Range 22 Robot Scan Range 30 Terrain Scan Range 24 Terrain Scan Density 135 Jamming Range 12 Additional Mass Support 9 Armor Coverage 2400 Resistance: EM 90 Core Shielding 20 Propulsion Shielding 66 Utility Shielding 66 Weapon Shielding 100 Weapon Cycling 15 Melee Speed Boost 20 Evasion (%) 56 Launcher Accuracy 20 Armor Integrity Analysis 50 Recoil Reduction 2 Kinecelleration 30 Offensive Hacking 42 Defensive Hacking 48 Item Schematics ----------------- Hcp. Storage Unit | -10/Materials | Hacked Lrg. Storage Unit | -10/Materials | Hacked Adv. Signal Interpreter | -6/Factory | Hacked Imp. Antigrav System | -6/Factory | Hacked Adv. Hacking Suite | -5/Factory | Hacked Exp. Signal Interpreter | -5/Factory | Hacked Adv. System Shield | -5/Factory | Hacked Imp. Utility Shielding | -5/Factory | Hacked Imp. System Backup Module | -5/Factory | Hacked Gravity Neutralizing Apparatus | -5/Factory | Hacked Biomechanical Wings | -5/Factory | Hacked Exp. Sensor Array | -5/Factory | Hacked Exp. Terrain Scan Processor | -5/Factory | Hacked Exp. Propulsion Shielding | -5/Factory | Hacked Exp. Terrain Scanner | -5/Factory | Hacked Antigrav Array | -5/Factory | Hacked Robot Schematics ------------------ None Fabricated ------------ Hcp. Storage Unit | x1 | -6/Factory Hcp. Storage Unit | x1 | -6/Factory Adv. Hacking Suite | x1 | -5/Factory Adv. Hacking Suite | x1 | -5/Factory Adv. Hacking Suite | x1 | -5/Factory Exp. Signal Interpreter | x1 | -5/Factory Alien Tech Used ----------------- None Achievements -------------- None Challenges ------------ None Game ------ Seed RelayContainmentModule Manual? 0 Play Time 03:37:26 Cumulative 92.5 hours Start 2020.12.30 @ 21:30:16 End 2020.12.31 @ 01:15:58 Sessions 1 Manual Loads 0 Difficulty Rogue Special Mode None Game No. 22 Rogue 22 Adventurer 0 Explorer 0 Win Type - Total 6 Types 4/1/0/1/0/0/0/0/0 Lore% 43 Gallery% 63 Achievement% 51 Wizard Run 0 Options --------- ASCII 0 Keyboard 0 Movement Numpad Keybinds 0 Fullscreen 1 Font 18/TerminusBold Map View 76x50 Tactical HUD 1 Map Filters NONE Filters NONE Steam 1 RUN: eb0fe9ff-1985-4ae7-8bab-f2f6427794f5